[Event "Early-Titled-Tuesday-Blitz-February-27-2024"]
[Site "Chess.com"]
[Date "2024.02.27"]
[Round "2"]
[White "ARMQUEEN"]
[Black "jraosam"]
[Result "0-1"]
[WhiteElo "2423"]
[BlackElo "1925"]
[TimeControl "180+1"]
[EndTime "8:18:25 PST"]
[Termination "jraosam won on time"]

1. e4 {[%clk 0:02:49.7]} 1... c5 {[%clk 0:02:51.8]} 2. Nc3 {[%clk 0:02:48.5]}
2... e6 {[%clk 0:02:47.7]} 3. f4 {[%clk 0:02:46.3]} 3... Nc6 {[%clk 0:02:37.4]}
4. Nf3 {[%clk 0:02:45.9]} 4... Nf6 {[%clk 0:02:36.5]} 5. e5 {[%clk 0:02:42.5]}
5... Ng8 {[%clk 0:02:35.4]} 6. Ne4 {[%clk 0:02:34.9]} 6... d5 {[%clk 0:02:34.2]}
7. exd6 {[%clk 0:02:33.2]} 7... Bxd6 {[%clk 0:02:33.4]} 8. d3 {[%clk 0:02:25.1]}
8... Nf6 {[%clk 0:02:31]} 9. Nxd6+ {[%clk 0:02:00.1]} 9... Qxd6 {[%clk
0:02:29.8]} 10. Be2 {[%clk 0:02:00.1]} 10... O-O {[%clk 0:02:20.7]} 11. O-O
{[%clk 0:01:52.5]} 11... b6 {[%clk 0:02:19]} 12. Nd2 {[%clk 0:01:43.7]} 12...
Bb7 {[%clk 0:02:12.7]} 13. Nc4 {[%clk 0:01:33.7]} 13... Qc7 {[%clk 0:02:10.5]}
14. Bf3 {[%clk 0:01:30.6]} 14... Rad8 {[%clk 0:02:06.5]} 15. c3 {[%clk
0:01:19.6]} 15... b5 {[%clk 0:02:00.2]} 16. Na3 {[%clk 0:01:17.4]} 16... a6
{[%clk 0:01:58.3]} 17. Qe2 {[%clk 0:01:16.9]} 17... Rd7 {[%clk 0:01:44.9]} 18.
Be3 {[%clk 0:01:12.8]} 18... Ne7 {[%clk 0:01:40.6]} 19. Rad1 {[%clk 0:01:10.6]}
19... Bxf3 {[%clk 0:01:31.9]} 20. Qxf3 {[%clk 0:01:07.4]} 20... Rfd8 {[%clk
0:01:31.7]} 21. Bf2 {[%clk 0:01:05.9]} 21... Nfd5 {[%clk 0:01:18.9]} 22. d4
{[%clk 0:01:04.5]} 22... cxd4 {[%clk 0:01:14.6]} 23. Bxd4 {[%clk 0:01:03.8]}
23... Nf5 {[%clk 0:01:09.2]} 24. Nc2 {[%clk 0:00:54.5]} 24... Qc4 {[%clk
0:01:02.5]} 25. g4 {[%clk 0:00:43.1]} 25... Nxd4 {[%clk 0:00:59.3]} 26. Nxd4
{[%clk 0:00:40]} 26... Qxa2 {[%clk 0:00:58.9]} 27. Rf2 {[%clk 0:00:38.6]} 27...
Ne7 {[%clk 0:00:51.5]} 28. Re1 {[%clk 0:00:34.1]} 28... Qd5 {[%clk 0:00:50.2]}
29. Qg3 {[%clk 0:00:32.2]} 29... Nc6 {[%clk 0:00:48.4]} 30. Nf3 {[%clk
0:00:25.9]} 30... Qb3 {[%clk 0:00:41.8]} 31. Ng5 {[%clk 0:00:19.6]} 31... Rd1
{[%clk 0:00:38.4]} 32. Re2 {[%clk 0:00:17.5]} 32... Qc4 {[%clk 0:00:34.3]} 33.
Kf2 {[%clk 0:00:16.1]} 33... R8d3 {[%clk 0:00:27.7]} 34. Nf3 {[%clk 0:00:13.9]}
34... Qc5+ {[%clk 0:00:23.7]} 35. Kg2 {[%clk 0:00:12.8]} 35... b4 {[%clk
0:00:20]} 36. Qh4 {[%clk 0:00:07.5]} 36... f6 {[%clk 0:00:16]} 37. Qh5 {[%clk
0:00:07.1]} 37... g6 {[%clk 0:00:14.2]} 38. Qh4 {[%clk 0:00:06.4]} 38... Rxe1
{[%clk 0:00:13.3]} 39. Nxe1 {[%clk 0:00:02.8]} 39... Qd5+ {[%clk 0:00:11.6]} 40.
Kf2 {[%clk 0:00:01.8]} 40... Rd2 {[%clk 0:00:11.5]} 41. Qxf6 {[%clk 0:00:01.7]}
41... Rxe2+ {[%clk 0:00:10]} 42. Kxe2 {[%clk 0:00:02.6]} 42... Qe4+ {[%clk
0:00:08.1]} 43. Kd2 {[%clk 0:00:03.2]} 43... bxc3+ {[%clk 0:00:07.5]} 44. bxc3
{[%clk 0:00:02.8]} 44... Qd5+ {[%clk 0:00:03.7]} 45. Nd3 {[%clk 0:00:02.7]}
45... a5 {[%clk 0:00:02.8]} 46. c4 {[%clk 0:00:02.2]} 46... Qd7 {[%clk
0:00:02.9]} 47. f5 {[%clk 0:00:02.1]} 47... Nb4 {[%clk 0:00:02.3]} 0-1

[Event "Early-Titled-Tuesday-Blitz-February-27-2024"]
[Site "Chess.com"]
[Date "2024.02.27"]
[Round "2"]
[White "NLLO777"]
[Black "Arlo2024"]
[Result "1-0"]
[WhiteElo "2532"]
[BlackElo "2295"]
[TimeControl "180+1"]
[EndTime "8:18:27 PST"]
[Termination "NLLO777 won on time"]

1. b3 {[%clk 0:03:00.9]} 1... b6 {[%clk 0:02:59.7]} 2. Bb2 {[%clk 0:03:00.7]}
2... Bb7 {[%clk 0:03:00.6]} 3. Nf3 {[%clk 0:03:01.1]} 3... Nf6 {[%clk 0:03:01]}
4. e3 {[%clk 0:03:01.5]} 4... e6 {[%clk 0:03:01.5]} 5. Be2 {[%clk 0:03:02.1]}
5... Be7 {[%clk 0:03:01.8]} 6. O-O {[%clk 0:03:02.8]} 6... O-O {[%clk
0:03:02.3]} 7. c4 {[%clk 0:03:03.5]} 7... c5 {[%clk 0:03:02.9]} 8. d3 {[%clk
0:03:03.2]} 8... d6 {[%clk 0:03:02.8]} 9. Nbd2 {[%clk 0:03:03.4]} 9... Nbd7
{[%clk 0:03:03.4]} 10. a3 {[%clk 0:03:04.1]} 10... a6 {[%clk 0:03:02.5]} 11. b4
{[%clk 0:03:04.7]} 11... Qc7 {[%clk 0:03:01.5]} 12. Qb3 {[%clk 0:03:03]} 12...
Rfc8 {[%clk 0:02:57.1]} 13. Rfc1 {[%clk 0:03:03.6]} 13... Rab8 {[%clk 0:02:57]}
14. h3 {[%clk 0:03:01.1]} 14... Qd8 {[%clk 0:02:55.5]} 15. d4 {[%clk 0:02:55.1]}
15... b5 {[%clk 0:02:48.6]} 16. cxb5 {[%clk 0:02:48.7]} 16... axb5 {[%clk
0:02:48.2]} 17. Bxb5 {[%clk 0:02:48.5]} 17... Bxf3 {[%clk 0:02:37.9]} 18. Bxd7
{[%clk 0:02:47.4]} 18... Bd5 {[%clk 0:02:36.3]} 19. Bxc8 {[%clk 0:02:20.4]}
19... Bxb3 {[%clk 0:02:34.6]} 20. Ba6 {[%clk 0:02:14.3]} 20... Ba4 {[%clk
0:02:12.2]} 21. Bc3 {[%clk 0:02:06.2]} 21... Nd5 {[%clk 0:02:08.3]} 22. Nc4
{[%clk 0:02:01.7]} 22... Nxc3 {[%clk 0:02:06.4]} 23. Rxc3 {[%clk 0:02:02.6]}
23... cxb4 {[%clk 0:01:37.1]} 24. axb4 {[%clk 0:02:03.5]} 24... Rxb4 {[%clk
0:01:36.9]} 25. Rca3 {[%clk 0:01:49.3]} 25... Bd7 {[%clk 0:01:32.3]} 26. Na5
{[%clk 0:01:46.4]} 26... Qb6 {[%clk 0:01:26.5]} 27. Bd3 {[%clk 0:01:43.1]} 27...
g6 {[%clk 0:01:23.6]} 28. Nc4 {[%clk 0:01:36.5]} 28... Qc7 {[%clk 0:01:20.4]}
29. Ra7 {[%clk 0:01:33.2]} 29... Rb7 {[%clk 0:01:20.4]} 30. Ra8+ {[%clk
0:01:29.1]} 30... Kg7 {[%clk 0:01:19.9]} 31. Be2 {[%clk 0:01:18.1]} 31... Bb5
{[%clk 0:01:18.9]} 32. Na5 {[%clk 0:00:39.7]} 32... Bxe2 {[%clk 0:01:03.6]} 33.
Nxb7 {[%clk 0:00:40.1]} 33... Qxb7 {[%clk 0:01:04.5]} 34. R8a7 {[%clk
0:00:40.6]} 34... Qb2 {[%clk 0:01:04.7]} 35. R1a2 {[%clk 0:00:39.6]} 35... Qb1+
{[%clk 0:01:04.1]} 36. Kh2 {[%clk 0:00:39.7]} 36... Bh4 {[%clk 0:01:00.2]} 37.
Rxe2 {[%clk 0:00:37.6]} 37... e5 {[%clk 0:00:55.1]} 38. g3 {[%clk 0:00:34.7]}
38... Bf6 {[%clk 0:00:53.1]} 39. d5 {[%clk 0:00:25]} 39... Qd3 {[%clk
0:00:52.4]} 40. Rea2 {[%clk 0:00:20.4]} 40... Qxd5 {[%clk 0:00:52.6]} 41. Rd7
{[%clk 0:00:21]} 41... e4 {[%clk 0:00:50.8]} 42. Raa7 {[%clk 0:00:20.2]} 42...
Be5 {[%clk 0:00:50.1]} 43. h4 {[%clk 0:00:19.4]} 43... h5 {[%clk 0:00:48.9]} 44.
Kg2 {[%clk 0:00:19.6]} 44... Qe6 {[%clk 0:00:49.3]} 45. Kf1 {[%clk 0:00:18.7]}
45... Qf5 {[%clk 0:00:47.8]} 46. Ke2 {[%clk 0:00:18.2]} 46... Qf3+ {[%clk
0:00:46.3]} 47. Ke1 {[%clk 0:00:18.7]} 47... Bxg3 {[%clk 0:00:43]} 48. fxg3
{[%clk 0:00:18.8]} 48... Qxe3+ {[%clk 0:00:43.1]} 49. Kd1 {[%clk 0:00:18.5]}
49... d5 {[%clk 0:00:34.4]} 50. Rxf7+ {[%clk 0:00:18.1]} 50... Kg8 {[%clk
0:00:34.3]} 51. Rg7+ {[%clk 0:00:18.3]} 51... Kf8 {[%clk 0:00:35]} 52. Rgf7+
{[%clk 0:00:17.8]} 52... Ke8 {[%clk 0:00:35.5]} 53. Rfe7+ {[%clk 0:00:17.1]}
53... Kd8 {[%clk 0:00:36]} 54. Reb7 {[%clk 0:00:15.2]} 54... Qd3+ {[%clk
0:00:33.8]} 55. Kc1 {[%clk 0:00:15.8]} 55... Qc3+ {[%clk 0:00:32.6]} 56. Kb1
{[%clk 0:00:16.4]} 56... Qe1+ {[%clk 0:00:31.3]} 57. Kb2 {[%clk 0:00:16.6]}
57... Qf2+ {[%clk 0:00:31.7]} 58. Kb3 {[%clk 0:00:16.9]} 58... Qxg3+ {[%clk
0:00:31.9]} 59. Ka4 {[%clk 0:00:17.1]} 59... Qg4 {[%clk 0:00:30]} 60. Ra8+
{[%clk 0:00:16.9]} 60... Qc8 {[%clk 0:00:29.3]} 61. Rxc8+ {[%clk 0:00:16.7]}
61... Kxc8 {[%clk 0:00:30.2]} 62. Rb5 {[%clk 0:00:17.4]} 62... Kd7 {[%clk
0:00:29.8]} 63. Rxd5+ {[%clk 0:00:17.9]} 63... Ke6 {[%clk 0:00:30.7]} 64. Rg5
{[%clk 0:00:16.6]} 64... e3 {[%clk 0:00:29.2]} 65. Rg3 {[%clk 0:00:16.2]} 65...
Kf5 {[%clk 0:00:29]} 66. Rxe3 {[%clk 0:00:17.1]} 66... Kf4 {[%clk 0:00:29.3]}
67. Rb3 {[%clk 0:00:17.2]} 67... g5 {[%clk 0:00:27.9]} 68. Rb4+ {[%clk
0:00:18.1]} 68... Kg3 {[%clk 0:00:24.5]} 69. hxg5 {[%clk 0:00:18.6]} 69... h4
{[%clk 0:00:25.1]} 70. g6 {[%clk 0:00:18.6]} 70... h3 {[%clk 0:00:25.5]} 71.
Rb3+ {[%clk 0:00:19.5]} 1-0

[Event "Early-Titled-Tuesday-Blitz-February-27-2024"]
[Site "Chess.com"]
[Date "2024.02.27"]
[Round "2"]
[White "Batica1984"]
[Black "Rosh1610"]
[Result "1-0"]
[WhiteElo "2762"]
[BlackElo "2413"]
[TimeControl "180+1"]
[EndTime "8:18:32 PST"]
[Termination "Batica1984 won by resignation"]

1. e4 {[%clk 0:03:00.9]} 1... c5 {[%clk 0:02:59]} 2. Nf3 {[%clk 0:02:58.5]} 2...
d6 {[%clk 0:02:58.8]} 3. d4 {[%clk 0:02:58.3]} 3... cxd4 {[%clk 0:02:59.7]} 4.
Nxd4 {[%clk 0:02:58.9]} 4... Nf6 {[%clk 0:03:00.1]} 5. Nc3 {[%clk 0:02:59.4]}
5... a6 {[%clk 0:03:00]} 6. Be3 {[%clk 0:02:57.9]} 6... e5 {[%clk 0:02:59.7]} 7.
Nb3 {[%clk 0:02:58]} 7... Be7 {[%clk 0:02:59.3]} 8. h3 {[%clk 0:02:57.5]} 8...
Be6 {[%clk 0:02:58.3]} 9. Qf3 {[%clk 0:02:50.3]} 9... h5 {[%clk 0:02:56.1]} 10.
O-O-O {[%clk 0:02:48.7]} 10... b5 {[%clk 0:02:51.8]} 11. Nd5 {[%clk 0:02:44.8]}
11... Bxd5 {[%clk 0:02:50.2]} 12. exd5 {[%clk 0:02:43.8]} 12... Nbd7 {[%clk
0:02:50.7]} 13. Be2 {[%clk 0:02:29.5]} 13... Rc8 {[%clk 0:02:50]} 14. Kb1 {[%clk
0:02:29.3]} 14... Qc7 {[%clk 0:02:44.7]} 15. c3 {[%clk 0:02:18.8]} 15... Nb6
{[%clk 0:02:44]} 16. g4 {[%clk 0:02:17.2]} 16... e4 {[%clk 0:02:03]} 17. Qg2
{[%clk 0:02:14]} 17... Nbxd5 {[%clk 0:01:49]} 18. Bc1 {[%clk 0:02:12.6]} 18...
Qb7 {[%clk 0:01:33.1]} 19. g5 {[%clk 0:02:07.6]} 19... Nd7 {[%clk 0:01:31.6]}
20. Ka1 {[%clk 0:02:00.2]} 20... N5b6 {[%clk 0:01:22.7]} 21. Rhe1 {[%clk
0:01:42.7]} 21... Ne5 {[%clk 0:01:08.5]} 22. Na5 {[%clk 0:01:35.3]} 22... Qa8
{[%clk 0:01:07]} 23. Be3 {[%clk 0:01:26.5]} 23... Nbc4 {[%clk 0:01:01.2]} 24.
Nxc4 {[%clk 0:01:25.8]} 24... bxc4 {[%clk 0:01:02.1]} 25. Bd4 {[%clk 0:01:24.4]}
25... Qb7 {[%clk 0:00:41.8]} 26. Qg3 {[%clk 0:01:04.9]} 26... Rb8 {[%clk
0:00:21.4]} 27. Rb1 {[%clk 0:01:04]} 27... Qb5 {[%clk 0:00:19.3]} 28. Qf4 {[%clk
0:00:56.6]} 28... O-O {[%clk 0:00:17.7]} 29. Qxe4 {[%clk 0:00:55.3]} 29... g6
{[%clk 0:00:13.4]} 30. Bf1 {[%clk 0:00:41.7]} 30... Rfe8 {[%clk 0:00:10.3]} 31.
f4 {[%clk 0:00:40.5]} 31... Nc6 {[%clk 0:00:09.7]} 32. Bf2 {[%clk 0:00:39.7]}
32... Bf8 {[%clk 0:00:08.9]} 33. Qxc4 {[%clk 0:00:38.5]} 33... Rxe1 {[%clk
0:00:08.1]} 34. Bxe1 {[%clk 0:00:36.8]} 34... Qxc4 {[%clk 0:00:06.6]} 35. Bxc4
{[%clk 0:00:36.6]} 35... Na5 {[%clk 0:00:06.8]} 36. Bd5 {[%clk 0:00:35.3]} 36...
Rc8 {[%clk 0:00:06.9]} 37. Rd1 {[%clk 0:00:30.7]} 37... Nc4 {[%clk 0:00:06.4]}
38. Bxc4 {[%clk 0:00:29.7]} 38... Rxc4 {[%clk 0:00:07.3]} 39. Rd4 {[%clk
0:00:30.3]} 39... Rxd4 {[%clk 0:00:07.5]} 40. cxd4 {[%clk 0:00:30.2]} 40... d5
{[%clk 0:00:08.4]} 41. b4 {[%clk 0:00:27.9]} 41... Bd6 {[%clk 0:00:08.3]} 42.
Bd2 {[%clk 0:00:28.2]} 42... Kf8 {[%clk 0:00:08.5]} 43. Kb2 {[%clk 0:00:28.6]}
43... Ke7 {[%clk 0:00:08.6]} 44. Kb3 {[%clk 0:00:29.1]} 44... Kd7 {[%clk
0:00:09.2]} 45. a4 {[%clk 0:00:27.5]} 45... Kc6 {[%clk 0:00:09.8]} 46. Be3
{[%clk 0:00:27]} 46... Be7 {[%clk 0:00:09.7]} 47. Bd2 {[%clk 0:00:26.8]} 47...
f6 {[%clk 0:00:09.9]} 48. f5 {[%clk 0:00:25.5]} 48... gxf5 {[%clk 0:00:07.3]}
49. g6 {[%clk 0:00:25.6]} 49... Bf8 {[%clk 0:00:07.6]} 50. Bf4 {[%clk
0:00:24.7]} 50... Bg7 {[%clk 0:00:08]} 51. Kc3 {[%clk 0:00:24.1]} 51... Bf8
{[%clk 0:00:07.9]} 52. Kd3 {[%clk 0:00:23.9]} 52... Bg7 {[%clk 0:00:07.7]} 53.
Ke3 {[%clk 0:00:24.3]} 53... h4 {[%clk 0:00:07.7]} 54. Kf3 {[%clk 0:00:24.2]}
54... Kd7 {[%clk 0:00:07.2]} 55. b5 {[%clk 0:00:23.6]} 55... axb5 {[%clk
0:00:07.2]} 56. axb5 {[%clk 0:00:24]} 56... Kc8 {[%clk 0:00:07.8]} 57. b6 {[%clk
0:00:23.8]} 57... Kb7 {[%clk 0:00:08.2]} 58. Bc7 {[%clk 0:00:24]} 58... Bh6
{[%clk 0:00:08.4]} 59. Bd8 {[%clk 0:00:24.4]} 59... Kc6 {[%clk 0:00:07.5]} 60.
Bxf6 {[%clk 0:00:24]} 60... Kxb6 {[%clk 0:00:07.9]} 61. g7 {[%clk 0:00:24.5]}
61... Bxg7 {[%clk 0:00:06.9]} 62. Bxg7 {[%clk 0:00:25.4]} 62... Kc6 {[%clk
0:00:07.1]} 63. Bf6 {[%clk 0:00:25.7]} 63... Kd6 {[%clk 0:00:06.4]} 64. Bxh4
{[%clk 0:00:26.6]} 64... Ke6 {[%clk 0:00:06.4]} 65. Bg3 {[%clk 0:00:27]} 65...
Kf6 {[%clk 0:00:06.6]} 66. Be5+ {[%clk 0:00:27.3]} 66... Kg5 {[%clk 0:00:06.9]}
67. Kg3 {[%clk 0:00:27]} 67... Kh5 {[%clk 0:00:06.5]} 68. Kf4 {[%clk 0:00:27.3]}
68... Kh4 {[%clk 0:00:06.8]} 69. Kxf5 {[%clk 0:00:27.8]} 69... Kxh3 {[%clk
0:00:07.7]} 70. Ke6 {[%clk 0:00:28.5]} 70... Kg4 {[%clk 0:00:08]} 71. Kxd5
{[%clk 0:00:29.4]} 71... Kg5 {[%clk 0:00:08.9]} 1-0

[Event "Early-Titled-Tuesday-Blitz-February-27-2024"]
[Site "Chess.com"]
[Date "2024.02.27"]
[Round "2"]
[White "Let_it_be_1"]
[Black "sokidze"]
[Result "0-1"]
[WhiteElo "2554"]
[BlackElo "2798"]
[TimeControl "180+1"]
[EndTime "8:18:35 PST"]
[Termination "sokidze won on time"]

1. e4 {[%clk 0:03:00.9]} 1... c5 {[%clk 0:03:00.1]} 2. Nf3 {[%clk 0:03:00.7]}
2... Nc6 {[%clk 0:03:00.6]} 3. d4 {[%clk 0:03:00.9]} 3... cxd4 {[%clk
0:03:01.1]} 4. Nxd4 {[%clk 0:03:01.6]} 4... g6 {[%clk 0:03:01.8]} 5. c4 {[%clk
0:03:01.1]} 5... Nf6 {[%clk 0:03:02.2]} 6. Nc3 {[%clk 0:03:01]} 6... d6 {[%clk
0:03:02.8]} 7. Be2 {[%clk 0:03:00.7]} 7... Nxd4 {[%clk 0:03:02.9]} 8. Qxd4
{[%clk 0:03:00.5]} 8... Bg7 {[%clk 0:03:03.6]} 9. Be3 {[%clk 0:03:00.8]} 9...
O-O {[%clk 0:03:04.1]} 10. Qd2 {[%clk 0:03:01.1]} 10... a5 {[%clk 0:03:04.8]}
11. O-O {[%clk 0:03:00.9]} 11... a4 {[%clk 0:03:05]} 12. f3 {[%clk 0:03:00.7]}
12... Qa5 {[%clk 0:03:05]} 13. Rac1 {[%clk 0:03:00.8]} 13... Be6 {[%clk
0:03:04.7]} 14. Rc2 {[%clk 0:03:01.3]} 14... Rfc8 {[%clk 0:02:56.6]} 15. Qc1
{[%clk 0:03:01.3]} 15... Qb4 {[%clk 0:02:26.3]} 16. Nb5 {[%clk 0:02:35.1]} 16...
Nd7 {[%clk 0:02:06.2]} 17. Nd4 {[%clk 0:02:22.1]} 17... Nc5 {[%clk 0:01:57.1]}
18. Rd1 {[%clk 0:02:05]} 18... Bd7 {[%clk 0:01:50.1]} 19. Kh1 {[%clk 0:02:04.3]}
19... Ne6 {[%clk 0:01:29.5]} 20. h4 {[%clk 0:01:31]} 20... Rc7 {[%clk
0:01:22.7]} 21. a3 {[%clk 0:01:13.4]} 21... Qa5 {[%clk 0:01:15.6]} 22. Nb5
{[%clk 0:00:54.9]} 22... Bxb5 {[%clk 0:01:10.7]} 23. cxb5 {[%clk 0:00:55.2]}
23... Rac8 {[%clk 0:01:11.1]} 24. Rxc7 {[%clk 0:00:51.5]} 24... Qxc7 {[%clk
0:00:54.5]} 25. Qxc7 {[%clk 0:00:35.5]} 25... Rxc7 {[%clk 0:00:54.3]} 26. Rd2
{[%clk 0:00:36]} 26... Be5 {[%clk 0:00:38.5]} 27. g4 {[%clk 0:00:27.4]} 27...
Rc1+ {[%clk 0:00:23.1]} 28. Kg2 {[%clk 0:00:27.1]} 28... Rb1 {[%clk 0:00:23.7]}
29. Bd1 {[%clk 0:00:23]} 29... Bxb2 {[%clk 0:00:17.9]} 30. Bc2 {[%clk
0:00:18.5]} 30... Ra1 {[%clk 0:00:15.4]} 31. Bxa4 {[%clk 0:00:18.6]} 31... Rxa3
{[%clk 0:00:09.3]} 32. Rxb2 {[%clk 0:00:17.1]} 32... Rxe3 {[%clk 0:00:10]} 33.
Bb3 {[%clk 0:00:17.2]} 33... Nc5 {[%clk 0:00:07.4]} 34. Bd5 {[%clk 0:00:17.1]}
34... e6 {[%clk 0:00:06.3]} 35. Bc4 {[%clk 0:00:15.5]} 35... Rc3 {[%clk
0:00:06.5]} 36. Be2 {[%clk 0:00:15.4]} 36... Kf8 {[%clk 0:00:06.5]} 37. Kf2
{[%clk 0:00:15.5]} 37... Ra3 {[%clk 0:00:06.6]} 38. h5 {[%clk 0:00:08.4]} 38...
g5 {[%clk 0:00:06]} 39. Ke1 {[%clk 0:00:07.8]} 39... h6 {[%clk 0:00:06.4]} 40.
Kd2 {[%clk 0:00:07.8]} 40... b6 {[%clk 0:00:06.9]} 41. Ke1 {[%clk 0:00:05.9]}
41... Ke7 {[%clk 0:00:07.4]} 42. Kf2 {[%clk 0:00:06.3]} 42... Kf6 {[%clk
0:00:08]} 43. Bc4 {[%clk 0:00:04.6]} 43... Ra4 {[%clk 0:00:07]} 44. Be2 {[%clk
0:00:04.3]} 44... Ke5 {[%clk 0:00:07.4]} 45. Rd2 {[%clk 0:00:04.4]} 45... Ra3
{[%clk 0:00:07]} 46. Rb2 {[%clk 0:00:04.2]} 46... Na4 {[%clk 0:00:05.1]} 47. Rc2
{[%clk 0:00:03.6]} 47... Nc3 {[%clk 0:00:05.7]} 48. Bf1 {[%clk 0:00:02.9]} 48...
Ra2 {[%clk 0:00:05.5]} 49. Rxa2 {[%clk 0:00:02.6]} 49... Nxa2 {[%clk 0:00:06.4]}
50. Ke3 {[%clk 0:00:03.5]} 50... Nc3 {[%clk 0:00:04.9]} 51. Bd3 {[%clk
0:00:03.6]} 51... Na4 {[%clk 0:00:05.3]} 52. Bf1 {[%clk 0:00:03.3]} 52... Nc5
{[%clk 0:00:05.8]} 53. Bc4 {[%clk 0:00:03.4]} 53... d5 {[%clk 0:00:03.6]} 54.
exd5 {[%clk 0:00:03.8]} 54... exd5 {[%clk 0:00:04.5]} 55. Ba2 {[%clk 0:00:04.5]}
55... f6 {[%clk 0:00:04.2]} 56. Bb1 {[%clk 0:00:03.3]} 56... d4+ {[%clk
0:00:04.7]} 57. Kd2 {[%clk 0:00:03.5]} 57... Kf4 {[%clk 0:00:05.1]} 58. Ke2
{[%clk 0:00:02]} 58... Ke5 {[%clk 0:00:02.2]} 59. Kd2 {[%clk 0:00:01.3]} 59...
Ne6 {[%clk 0:00:02.6]} 0-1

[Event "Early-Titled-Tuesday-Blitz-February-27-2024"]
[Site "Chess.com"]
[Date "2024.02.27"]
[Round "2"]
[White "Chessdreamer2020"]
[Black "Sammed_Shete"]
[Result "0-1"]
[WhiteElo "2553"]
[BlackElo "2795"]
[TimeControl "180+1"]
[EndTime "8:18:36 PST"]
[Termination "Sammed_Shete won by checkmate"]

1. e4 {[%clk 0:03:00.9]} 1... c6 {[%clk 0:02:58.1]} 2. d4 {[%clk 0:03:00.6]}
2... d5 {[%clk 0:02:58.6]} 3. exd5 {[%clk 0:03:01.5]} 3... cxd5 {[%clk
0:02:59.5]} 4. Bd3 {[%clk 0:03:02.4]} 4... Nc6 {[%clk 0:02:59]} 5. c3 {[%clk
0:03:02.8]} 5... Qc7 {[%clk 0:02:59.1]} 6. h3 {[%clk 0:03:02.6]} 6... g6 {[%clk
0:02:53.2]} 7. Nf3 {[%clk 0:03:02.7]} 7... Bf5 {[%clk 0:02:53]} 8. Be2 {[%clk
0:03:03]} 8... Nf6 {[%clk 0:02:48.9]} 9. O-O {[%clk 0:03:03.1]} 9... Bg7 {[%clk
0:02:48.7]} 10. Be3 {[%clk 0:03:02.6]} 10... h5 {[%clk 0:02:46]} 11. Nbd2 {[%clk
0:03:02]} 11... Ne4 {[%clk 0:02:45.1]} 12. Qc1 {[%clk 0:03:01.4]} 12... h4
{[%clk 0:02:37]} 13. Re1 {[%clk 0:02:59.3]} 13... O-O-O {[%clk 0:02:30.3]} 14.
Nxe4 {[%clk 0:02:50]} 14... dxe4 {[%clk 0:02:28.4]} 15. Bf4 {[%clk 0:02:50.2]}
15... e5 {[%clk 0:02:08.4]} 16. Nxe5 {[%clk 0:02:48.6]} 16... Nxe5 {[%clk
0:02:08]} 17. dxe5 {[%clk 0:02:45.7]} 17... Bxe5 {[%clk 0:02:00.6]} 18. Bxe5
{[%clk 0:02:44.5]} 18... Qxe5 {[%clk 0:02:01.5]} 19. Qe3 {[%clk 0:02:42.2]}
19... Kb8 {[%clk 0:02:00.8]} 20. Rad1 {[%clk 0:02:42]} 20... f6 {[%clk 0:01:58]}
21. Bf1 {[%clk 0:02:29.5]} 21... g5 {[%clk 0:01:53.5]} 22. Be2 {[%clk
0:02:15.6]} 22... Be6 {[%clk 0:01:38.5]} 23. a3 {[%clk 0:01:59.3]} 23... Bb3
{[%clk 0:01:05.3]} 24. Rd4 {[%clk 0:01:35.3]} 24... Rxd4 {[%clk 0:00:58.2]} 25.
cxd4 {[%clk 0:01:36.2]} 25... Qd5 {[%clk 0:00:58.6]} 26. f3 {[%clk 0:01:26]}
26... Qa5 {[%clk 0:00:49]} 27. Rc1 {[%clk 0:01:08.9]} 27... exf3 {[%clk
0:00:49.2]} 28. Bxf3 {[%clk 0:01:08.6]} 28... Qb6 {[%clk 0:00:36]} 29. Rc5
{[%clk 0:00:47.7]} 29... a6 {[%clk 0:00:33.5]} 30. Qe7 {[%clk 0:00:45.8]} 30...
Ba4 {[%clk 0:00:19.8]} 31. b4 {[%clk 0:00:34.5]} 31... Bb5 {[%clk 0:00:18.9]}
32. d5 {[%clk 0:00:33]} 32... Rc8 {[%clk 0:00:17.9]} 33. Kh1 {[%clk 0:00:27.3]}
33... Ba4 {[%clk 0:00:13.7]} 34. Rxc8+ {[%clk 0:00:25.5]} 34... Kxc8 {[%clk
0:00:14.6]} 35. Qf8+ {[%clk 0:00:24.1]} 35... Kc7 {[%clk 0:00:11.3]} 36. Bg4
{[%clk 0:00:21.5]} 36... Qd6 {[%clk 0:00:10.5]} 37. Qc8+ {[%clk 0:00:21.1]}
37... Kb6 {[%clk 0:00:10.7]} 38. Be6 {[%clk 0:00:16.9]} 38... Bb3 {[%clk
0:00:10.1]} 39. a4 {[%clk 0:00:10.2]} 39... Bxa4 {[%clk 0:00:10.1]} 40. Qc4
{[%clk 0:00:10.7]} 40... Bb5 {[%clk 0:00:09.4]} 41. Qd4+ {[%clk 0:00:10.8]}
41... Kc7 {[%clk 0:00:10.1]} 42. Qc3+ {[%clk 0:00:09.8]} 42... Kb8 {[%clk
0:00:09.6]} 43. Qxf6 {[%clk 0:00:08.9]} 43... Qf4 {[%clk 0:00:08.2]} 44. Qxf4+
{[%clk 0:00:06.9]} 44... gxf4 {[%clk 0:00:09.1]} 45. Kg1 {[%clk 0:00:05.8]}
45... Kc7 {[%clk 0:00:09.2]} 46. Kf2 {[%clk 0:00:06.3]} 46... Kd6 {[%clk
0:00:09.8]} 47. Kf3 {[%clk 0:00:06.8]} 47... Ke5 {[%clk 0:00:10.5]} 48. Bc8
{[%clk 0:00:04.1]} 48... b6 {[%clk 0:00:10]} 49. Bb7 {[%clk 0:00:03.1]} 49... a5
{[%clk 0:00:10.2]} 50. Bc6 {[%clk 0:00:03]} 50... Bxc6 {[%clk 0:00:08.6]} 51.
dxc6 {[%clk 0:00:03.2]} 51... Kd6 {[%clk 0:00:09.2]} 52. bxa5 {[%clk 0:00:03.7]}
52... bxa5 {[%clk 0:00:09.3]} 53. Kxf4 {[%clk 0:00:02.4]} 53... a4 {[%clk
0:00:09.2]} 54. Kg4 {[%clk 0:00:02.3]} 54... a3 {[%clk 0:00:09.4]} 55. Kxh4
{[%clk 0:00:03.2]} 55... a2 {[%clk 0:00:09.7]} 56. g4 {[%clk 0:00:04.1]} 56...
a1=Q {[%clk 0:00:09.9]} 57. g5 {[%clk 0:00:04.6]} 57... Kxc6 {[%clk 0:00:09.9]}
58. Kh5 {[%clk 0:00:05]} 58... Kd6 {[%clk 0:00:10.3]} 59. Kh4 {[%clk 0:00:04.8]}
59... Ke6 {[%clk 0:00:10.6]} 60. Kg4 {[%clk 0:00:05.6]} 60... Qd4+ {[%clk
0:00:10.3]} 61. Kh5 {[%clk 0:00:05.8]} 61... Kf5 {[%clk 0:00:11.2]} 62. h4
{[%clk 0:00:06.7]} 62... Qh8# {[%clk 0:00:11.5]} 0-1